fUST/lending_fUST_20251127
["ID","MTS","AMOUNT","RATE_DAILY","PERIOD"]
[394959869,1764208833830,-2000.0,0.00045,120]
[394959870,1764208833854,-1000.0,0.00045,120]
[394959871,1764208833878,-2000.0,0.00045,120]
[394959872,1764208833902,-478.0,0.00045,120]
[394959873,1764208833925,-1008.78798186,0.00045,30]
[394959874,1764208833950,-2247.60963036,0.00045,120]
[394959875,1764208833974,-500.0,0.00045,120]
[394959876,1764208834001,-520.52,0.00045,30]
[394959877,1764208834024,-2700.0,0.00045084,60]
[394959878,1764208834051,-151.0,0.000451,120]
[394959879,1764208834077,-500.0,0.000451,120]
[394959880,1764208834105,-301.6071529,0.00045217,30]
[394959881,1764208834132,-301.6071529,0.00045217,30]
[394959882,1764208834158,-610.4769624,0.00045217,30]
[394959883,1764208834184,-301.6071529,0.00045258,30]
[394959884,1764208834211,-610.0974659,0.00045258,30]
[394959885,1764208834236,-197.4641663,0.00045258,30]
[394959886,1764208834261,-350.33649601,0.000454,120]
[394959887,1764208834286,-783986.1338,0.0004544,30]
[394959888,1764208834313,-500.0,0.000455,120]
[394959889,1764208834338,-3976.32271962,0.00045556,30]
[394959890,1764208834363,-274.00057313,0.000458,120]
[394959891,1764208834389,-1224.18,0.00045808,30]
[394959892,1764208834414,-500.0,0.0004588,120]
[394959893,1764208834439,-499.5803648,0.000459,120]
[394959894,1764208834464,-50000.0,0.000459,30]
[394959895,1764208834488,-2000.0,0.000459,120]
[394959896,1764208834513,-151.0,0.000459,120]
[394959897,1764208834538,-472.00479632,0.00046,30]
[394959898,1764208834564,-200.0,0.00046,120]
[394959899,1764208834589,-5000.0,0.00046,120]
[394959900,1764208834614,-9000.0,0.00046,120]
[394959901,1764208834639,-150.0,0.00046,120]
[394959902,1764208834663,-500.0,0.00046,120]
[394959903,1764208834688,-166.0,0.00046,90]
[394959904,1764208834720,-2927.72,0.00046,30]
[394959905,1764208834747,-500.0,0.000461,120]
[394959906,1764208834775,-2700.0,0.0004618,60]
[394959907,1764208834799,-200000.00000001,0.00046246,30]
[394959908,1764208834823,-200.0,0.00046308,120]
[394959909,1764208834848,-1000.0,0.000466,120]
[394959910,1764208834873,-165.0,0.00046664,90]
[394959911,1764208834898,-1224.18,0.00046712,30]
[394959912,1764208834923,-151.0,0.000468,120]
[394959913,1764208834949,-200.0,0.00046807,120]
[394959914,1764208834974,-200.0,0.00046831,120]
[394959915,1764208834999,-4652.36725478,0.00046887,90]
[394959916,1764208835024,-2000.0,0.000469,120]
[394959917,1764208835049,-1000.0,0.00047,120]
[394959918,1764208835073,-5000.0,0.00047,120]
[394959919,1764208835099,-520.52,0.0004725,30]
[394959920,1764208835125,-2700.0,0.00047276,60]
[394959921,1764208835152,-5000.0,0.00047382,30]
[394959922,1764208835179,-7021.10412179,0.000474,120]
[394959923,1764208835203,-202.0,0.000474,74]
[394959924,1764208835229,-712714.6671,0.0004744,30]
[394959925,1764208835253,-500.0,0.000475,120]
[394959926,1764208835280,-200.0,0.00047567,120]
[394959927,1764208835305,-151.0,0.000476,120]
[394959928,1764208835330,-1224.18,0.00047616,30]
[394959929,1764208835355,-2000.0,0.000479,120]
[394959930,1764208835381,-200.0,0.00047947,120]
[394959931,1764208835407,-300.0,0.00048,120]
[394959932,1764208835548,-2000.0,0.00048,120]
[394959933,1764208835574,-3910.0,0.00048,120]
[394959934,1764208835598,-2000.0,0.00048,120]
[394959935,1764208835627,-5000.0,0.00048,60]
[394959936,1764208835656,-5151.45,0.00048,120]
[394959937,1764208835680,-5000.0,0.00048,120]
[394959938,1764208835713,-500.0,0.00048,120]
[394959939,1764208835740,-2700.0,0.00048372,60]
[394959940,1764208835769,-151.0,0.000484,120]
[394959941,1764208835794,-500.0,0.000485,120]
[394959942,1764208835820,-1224.18,0.0004852,30]
[394959943,1764208835845,-200.0,0.00048578,120]
[394959944,1764208835870,-5890.8,0.000486,120]
[394959945,1764208835895,-200.0,0.0004864,120]
[394959946,1764208835920,-399.28860726,0.000487,120]
[394959947,1764208835944,-1433.8310146,0.000488,120]
[394959948,1764208835968,-1000.0,0.000488,120]
[394959949,1764208835993,-1000.0,0.000488,120]
[394959950,1764208836018,-1000.0,0.000488,120]
[394959951,1764208836042,-1000.0,0.000488,120]
[394959952,1764208836067,-1000.0,0.000488,120]
[394959953,1764208836092,-1000.0,0.000488,120]
[394959954,1764208836116,-5000.0,0.00048828,30]
[394959955,1764208836147,-2000.0,0.000489,120]
[394959956,1764208836172,-2616.75499944,0.00048999,14]
[394959957,1764208836204,-2899.21994598,0.00049,60]
[394959958,1764208836229,-314.82576045,0.00049,15]
[394959959,1764208836255,-1000.0,0.00049,120]
[394959960,1764208836279,-9000.0,0.00049,120]
[394959961,1764208836304,-1456.74,0.00049,14]
[394959962,1764208836327,-500.0,0.00049,120]
[394959963,1764208836352,-1139.9576914,0.00049,30]
[394959964,1764208836376,-151.0,0.000493,120]
[394959965,1764208836401,-1224.18,0.00049424,30]
[394959966,1764208836427,-294361.72197731,0.0004944,30]
[394959967,1764208849546,-489.5,0.00021706,15]
[394959968,1764208849649,-257.03521475,0.00031,120]
[394959969,1764208849676,-257.03521475,0.000319,120]
[394959970,1764208849706,-13558.44,0.00032877,10]
[394959971,1764208849732,-257.03521475,0.000329,120]
[394959972,1764208849757,-353.54508592,0.00033,10]
[394959973,1764208849784,-257.03521475,0.000339,120]
[394959974,1764208849810,-257.03521475,0.000349,120]
[394959975,1764208849965,-473.06867736,0.00039999,31]
[394959976,1764208849991,-500.0,0.00039999,31]
[394959977,1764208850018,-500.0,0.00039999,31]
[394959978,1764208850044,-500.0,0.00039999,31]
[394959979,1764208850069,-295.17470349,0.00039999,31]
[394959980,1764208850093,-500.0,0.00039999,31]
[394959981,1764208850117,-500.0,0.00039999,31]
[394959982,1764208850141,-500.0,0.00039999,31]
[394959983,1764208850165,-500.0,0.00039999,31]
[394959984,1764208850189,-500.0,0.00039999,31]
[394959985,1764208850213,-232.09386783,0.00039999,31]
[394959986,1764208850237,-500.0,0.00039999,31]
[394959987,1764208850264,-494.97268185,0.00039999,31]
[394959988,1764208850290,-251.51333928,0.00039999,31]
[394959989,1764208850315,-500.0,0.00039999,31]
[394959990,1764208850340,-615.77429011,0.00039999,31]
[394959991,1764208850366,-500.0,0.00039999,31]
[394959992,1764208850390,-500.0,0.00039999,31]
[394959993,1764208850415,-500.0,0.00039999,31]
[394959994,1764208850439,-353.54508592,0.0004,10]
[394959995,1764208850464,-500.0,0.00041796,60]
[394959996,1764208850488,-500.0,0.00042344,60]
[394959997,1764208850512,-500.0,0.00042892,60]
[394959998,1764208850536,-500.0,0.0004344,60]
[394959999,1764208850560,-500.0,0.00043988,60]
[394960000,1764208850585,-500.0,0.00044536,60]
[394960001,1764208850609,-500.0,0.00045084,60]
[394960002,1764208850634,-500.0,0.00045632,60]
[394960003,1764208850658,-500.0,0.0004618,60]
[394960004,1764208850683,-500.0,0.00046728,60]
[394960005,1764208850710,-500.0,0.00047824,60]
[394960006,1764208850737,-500.0,0.00048578,120]
[394960007,1764208850761,-500.0,0.0004892,60]
[394960008,1764208850788,-339162.42652269,0.0004944,30]
[394960009,1764208850812,-152.37693197,0.00049443,30]
[394960010,1764208850836,-500.0,0.000495,120]
[394960011,1764208850861,-451.6486625,0.000496,120]
[394960012,1764208850887,-520.52,0.00049613,30]
[394960013,1764208850911,-162.0,0.00049775,120]
[394960014,1764208850936,-200.0,0.00049796,120]
[394960015,1764208850961,-200.0,0.00049861,120]
[394960016,1764208850990,-5262.87189801,0.0004987,30]
[394960017,1764208851029,-2000.0,0.000499,120]
[394960018,1764208851057,-200.0,0.00049973,120]
[394960019,1764208851080,-536.5093797,0.0005,10]
[394960020,1764208851103,-178.38574541,0.0005,30]
[394960021,1764208851127,-427.57807237,0.0005,120]
[394960022,1764208851151,-172.27731512,0.0005,120]
[394960023,1764208851174,-184.48224359,0.0005,120]
[394960024,1764208851199,-300.0,0.0005,120]
[394960025,1764208851223,-2243.88,0.0005,120]
[394960026,1764208851246,-2000.0,0.0005,120]
[394960027,1764208851273,-2000.0,0.0005,120]
[394960028,1764208851298,-3800.8432498,0.0005,120]
[394960029,1764208851323,-3343.46324379,0.0005,60]
[394960030,1764208851348,-10000.0,0.0005,120]
[394960031,1764208851373,-2000.0,0.0005,120]
[394960032,1764208851398,-8000.0,0.0005,45]
[394960033,1764208851423,-954.74022944,0.0005,30]
[394960034,1764208851447,-201.0,0.0005,120]
[394960035,1764208851471,-9287.59810225,0.0005,120]
[394960036,1764208851496,-157.0,0.0005,120]
[394960037,1764208851519,-200.0,0.0005,120]
[394960038,1764208851544,-1171.01589625,0.0005,120]
[394960039,1764208851567,-200.0,0.0005,120]
[394960040,1764208851590,-168.0,0.0005,120]
[394960041,1764208851614,-500.0,0.0005,120]
[394960042,1764208851638,-1138.0,0.0005,60]
[394960043,1764208851663,-405.0,0.0005,120]
[394960044,1764208851687,-353.54508592,0.0005,120]
[394960045,1764208851716,-353.54508592,0.0005,30]
[394960046,1764208851743,-500.0,0.00050016,60]
[394960047,1764208851770,-151.0,0.000501,120]
[394960048,1764208851795,-5000.0,0.000502,120]
[394960049,1764208851819,-1224.18,0.00050328,30]
[394960050,1764208851843,-5000.0,0.00050572,30]
[394960051,1764208851867,-5000.0,0.00050572,30]
[394960052,1764208851893,-151.0,0.000506,23]
[394960053,1764208851918,-202.0,0.0005062,83]
[394960054,1764208851944,-200.0,0.00050759,120]
[394960055,1764208851971,-153.0,0.00050893,120]
[394960056,1764208851997,-153.0,0.00050893,120]
[394960057,1764208852024,-153.0,0.00050893,120]
[394960058,1764208852050,-2000.0,0.000509,120]
[394960059,1764208852077,-153.0,0.0005092,120]
[394960060,1764208852104,-153.0,0.0005092,120]
[394960061,1764208852130,-153.0,0.0005092,120]
[394960062,1764208852156,-153.0,0.0005092,120]
[394960063,1764208852182,-153.0,0.0005092,120]
[394960064,1764208852208,-153.0,0.0005092,120]
[394960065,1764208852235,-153.0,0.00050951,120]
[394960066,1764208852383,-153.0,0.00050951,120]
[394960067,1764208852410,-153.0,0.00050951,120]
[394960068,1764208852437,-153.0,0.00050951,120]
[394960069,1764208852462,-153.0,0.00050951,120]
[394960070,1764208852488,-153.0,0.00050951,120]
[394960071,1764208852513,-153.0,0.00050957,120]
[394960072,1764208852538,-153.0,0.00050957,120]
[394960073,1764208852562,-153.0,0.00050957,120]
[394960074,1764208852588,-153.0,0.00050983,120]
[394960075,1764208852612,-153.0,0.00050983,120]
[394960076,1764208852636,-153.0,0.00050983,120]
[394960077,1764208852663,-153.0,0.00050983,120]
[394960078,1764208852691,-153.0,0.00050983,120]
[394960079,1764208852720,-153.0,0.00050983,120]
[394960080,1764208852758,-153.0,0.00050989,120]
[394960081,1764208852788,-153.0,0.00050989,120]
[394960082,1764208852812,-153.0,0.00050989,120]
[394960083,1764208852836,-500.0,0.00051,120]
[394960084,1764208852860,-193.0,0.00051,120]
[394960085,1764208852886,-7519.7,0.00051,14]
[394960086,1764208852915,-168.0,0.00051,120]
[394960087,1764208852943,-151.0,0.00051,120]
[394960088,1764208852967,-3007.086,0.00051,120]
[394960089,1764208852992,-3000.0,0.00051,85]
[394960090,1764208853018,-1138.0,0.00051,60]
[394960091,1764208853044,-3000.0,0.0005101,85]
[394960092,1764208853074,-3000.0,0.0005102,85]
[394960093,1764208853099,-3000.0,0.0005103,85]
[394960094,1764208853124,-3000.0,0.0005104,85]
[394960095,1764208853150,-3000.0,0.0005105,85]
[394960096,1764208853177,-3000.0,0.0005106,85]
[394960097,1764208853205,-200.0,0.00051065,120]
[394960098,1764208853242,-5967.714985,0.0005107,85]
[394960099,1764208853270,-4174.6267,0.000511,120]
[394960100,1764208853299,-500.0,0.00051112,60]
[394960101,1764208853329,-210.0,0.0005119,30]
[394960102,1764208853359,-1000.0,0.000512,120]
[394960103,1764208853387,-1000.0,0.000512,120]
[394960104,1764208853414,-1000.0,0.000512,120]
[394960105,1764208853442,-1000.0,0.000512,120]
[394960106,1764208853469,-1000.0,0.000512,120]
[394960107,1764208853496,-5401.0,0.000512,120]
[394960108,1764208853522,-10000.0,0.000512,120]
[394960109,1764208853547,-1224.18,0.00051232,30]
[394960110,1764208853571,-554333.63,0.0005144,30]
[394960111,1764208853596,-353.54508592,0.000515,120]
[394960112,1764208853621,-353.54508592,0.000515,30]
[394960113,1764208853647,-200.0,0.00051767,120]
[394960114,1764208853676,-151.0,0.000518,120]
[394960115,1764208853714,-2000.0,0.000519,120]
[394960116,1764208853748,-1000.0,0.00051999,120]
[394960117,1764208853783,-500.0,0.00052,120]
[394960118,1764208853817,-600.0,0.00052,120]
[394960119,1764208853858,-200.0,0.00052,120]
[394960120,1764208853890,-2000.0,0.00052,120]
[394960121,1764208853927,-2000.0,0.00052,120]
[394960122,1764208853971,-118982.54924371,0.00052,120]
[394960123,1764208854004,-300000.0,0.00052,120]
[394960124,1764208854042,-168.0,0.00052,120]
[394960125,1764208854076,-1138.0,0.00052,60]
[394960126,1764208854112,-5000.0,0.00052055,10]
[394960127,1764208854215,529.93,0.00048852,120]
[394960128,1764208854253,297.63144213,0.00031,120]
[394960129,1764208854489,297.63144213,0.000319,120]
[394960130,1764208854542,297.63144213,0.000329,120]
[394960131,1764208854587,297.63144213,0.000339,120]
[394960132,1764208854629,297.63144213,0.000349,120]
[394960133,1764208854721,11298.7,0.00032877,10]
[394960134,1764208856385,153.0,0.0005086,120]
[394960135,1764208856562,633.72733778,0.00039999,31]
[394960136,1764208856616,500.0,0.00039999,31]
[394960137,1764208856732,500.0,0.00039999,31]
[394960138,1764208856813,153.0,0.0005086,120]
[394960139,1764208857017,153.0,0.0005086,120]
[394960140,1764208857385,162.0,0.00043,90]
[394960141,1764208857697,162.0,0.00044877,90]
[394960142,1764208859437,150.0,0.00049681,30]
[394960143,1764208866927,5000.0,0.000215,120]
[394960144,1764208889308,5000.0,0.00014,10]
[394960148,1764209014410,150.0,9.89e-05,30]
[394960149,1764209014810,150.0,0.00010789,30]
[394960150,1764209015207,150.0,0.00011688,30]
[394960151,1764209015619,150.0,0.00012587,30]
[394960152,1764209016026,166.65,0.00013486,30]
[394960153,1764209016440,199.98,0.00014385,30]
[394960154,1764209016846,233.31,0.00015284,30]
[394960155,1764209017244,266.64,0.00016183,30]
[394960156,1764209017642,294.3,0.00017082,30]
[394960157,1764209060058,-2000.0,0.00013699,7]
[394960158,1764209060087,-160.0,0.00016597,7]
[394960159,1764209060113,-160.0,0.00016685,8]
[394960160,1764209060138,-160.0,0.00016773,9]
[394960161,1764209060163,-2000.0,0.00017774,7]
[394960162,1764209060193,-178.38,0.00019,7]
[394960163,1764209060219,-150.0,0.0002,10]
[394960164,1764209060243,-447.93874079,0.00021,7]
[394960165,1764209060268,-831.2,0.00021706,15]
[394960166,1764209060291,-2000.0,0.00021849,7]
[394960167,1764209060315,-1328.24,0.00022,7]
[394960168,1764209060340,-292.77,0.00022,14]
[394960169,1764209060372,-203.41726497,0.00022756,30]
[394960170,1764209060397,-151.0,0.000237,8]
[394960171,1764209060422,-292.77,0.00024,14]
[394960172,1764209060447,-1328.24,0.000242,7]
[394960173,1764209060472,-161.789072,0.000249,7]
[394960174,1764209060496,-1713.623204,0.000249,7]
[394960175,1764209060520,-1713.623204,0.000249,7]
[394960176,1764209060543,-1713.623204,0.000249,7]
[394960177,1764209060566,-1713.623204,0.000249,7]
[394960178,1764209060590,-353.4974844,0.00025,7]
[394960179,1764209060614,-1749.70330085,0.00025925,7]
[394960180,1764209060640,-292.77,0.000266,14]
[394960181,1764209060664,-1328.24,0.000267,7]
[394960182,1764209060702,-180.794814,0.00027397,7]
[394960183,1764209060725,-180.794814,0.00027397,7]
[394960184,1764209060748,-180.794814,0.00027397,7]
[394960185,1764209060776,-180.794814,0.00027397,7]
[394960186,1764209060811,-151.454465,0.00027397,7]
[394960187,1764209060833,-151.0,0.00027397,7]
[394960188,1764209060860,-151.0,0.00027397,7]
[394960189,1764209060884,-218.509812,0.00027397,7]
[394960190,1764209060908,-151.0,0.00027397,7]
[394960191,1764209060931,-151.0,0.00027397,7]
[394960192,1764209060954,-179.87924,0.00027397,7]
[394960193,1764209060976,-151.0,0.00027397,7]
[394960194,1764209061000,-151.0,0.00027397,7]
[394960195,1764209061024,-151.789179,0.00027397,7]
[394960196,1764209061048,-151.79204,0.00027397,7]
[394960197,1764209061071,-151.0,0.00027397,7]
[394960198,1764209061096,-151.0,0.00027397,7]
[394960199,1764209061120,-151.0,0.00027397,7]
[394960200,1764209061145,-151.0,0.00027397,7]
[394960201,1764209061168,-151.0,0.00027397,7]
[394960202,1764209061192,-157.738063,0.00027397,7]
[394960203,1764209061216,-151.0,0.00027397,7]
[394960204,1764209061242,-761.632167,0.00027397,7]
[394960205,1764209061266,-220.142635,0.00027397,7]
[394960206,1764209061290,-761.632167,0.00027397,7]
[394960207,1764209061313,-761.632167,0.00027397,7]
[394960208,1764209061338,-761.632167,0.00027397,7]
[394960209,1764209061361,-303.273968,0.00027397,7]
[394960210,1764209061386,-303.273968,0.00027397,7]
[394960211,1764209061409,-3065.421225,0.00027397,7]
[394960212,1764209061560,-151.0,0.00027397,7]
[394960213,1764209061585,-303.273968,0.00027397,7]
[394960214,1764209061608,-3065.421225,0.00027397,7]
[394960215,1764209061633,-151.0,0.00027397,7]
[394960216,1764209061656,-303.273968,0.00027397,7]
[394960217,1764209061679,-3065.421225,0.00027397,7]
[394960218,1764209061702,-151.0,0.00027397,7]
[394960219,1764209061727,-3065.421225,0.00027397,7]
[394960220,1764209061751,-250.0,0.000274,7]
[394960221,1764209061779,-250.0,0.000274,7]
[394960222,1764209061803,-250.0,0.000274,7]
[394960223,1764209061839,-250.0,0.000277,7]
[394960224,1764209061862,-250.0,0.000277,7]
[394960225,1764209061885,-250.0,0.000277,7]
[394960226,1764209061908,-188.9,0.000277,7]
[394960227,1764209061930,-2000.0,0.00027848,7]
[394960228,1764209061952,-2000.0,0.00027848,7]
[394960229,1764209061975,-2000.0,0.00027857,7]
[394960230,1764209061997,-2000.0,0.00027857,7]
[394960231,1764209062021,-2000.0,0.00027857,7]
[394960232,1764209062045,-2000.0,0.00027866,7]
[394960233,1764209062068,-2000.0,0.00027866,7]
[394960234,1764209062090,-2000.0,0.00027866,7]
[394960235,1764209062114,-2000.0,0.00027875,7]
[394960236,1764209062137,-2000.0,0.00027875,7]
[394960237,1764209062160,-2000.0,0.00027875,7]
[394960238,1764209062183,-2000.0,0.00027875,7]
[394960239,1764209062206,-151.0,0.00027875,7]
[394960240,1764209062229,-151.0,0.00027875,7]
[394960241,1764209062253,-151.0,0.00027875,7]
[394960242,1764209062276,-152.644394,0.00027875,7]
[394960243,1764209062300,-151.0,0.00027875,7]
[394960244,1764209062326,-761.632167,0.00027875,7]
[394960245,1764209062351,-761.632167,0.00027875,7]
[394960246,1764209062377,-761.632167,0.00027875,7]
[394960247,1764209062404,-761.632167,0.00027875,7]
[394960248,1764209062428,-303.273968,0.00027875,7]
[394960249,1764209062452,-303.273968,0.00027875,7]
[394960250,1764209062476,-3065.421225,0.00027875,7]
[394960251,1764209062499,-151.0,0.00027875,7]
[394960252,1764209062523,-303.273968,0.00027875,7]
[394960253,1764209062547,-3065.421225,0.00027875,7]
[394960254,1764209062570,-151.0,0.00027875,7]
[394960255,1764209062593,-303.273968,0.00027875,7]
[394960256,1764209062617,-3065.421225,0.00027875,7]
[394960257,1764209062640,-151.0,0.00027875,7]
[394960258,1764209062663,-3065.421225,0.00027875,7]
[394960259,1764209062688,-1713.623204,0.00027875,7]
[394960260,1764209062712,-1713.623204,0.00027875,7]
[394960261,1764209062735,-1713.623204,0.00027875,7]
[394960262,1764209062759,-1713.623204,0.00027875,7]
[394960263,1764209062787,-2000.0,0.00027883,7]
[394960264,1764209062810,-2000.0,0.00027883,7]
[394960265,1764209062834,-2000.0,0.00027883,7]
[394960266,1764209062858,-2000.0,0.00027883,7]
[394960267,1764209062881,-2000.0,0.00027883,7]
[394960268,1764209062904,-2000.0,0.00027892,7]
[394960269,1764209062927,-2000.0,0.00027892,7]
[394960270,1764209062950,-2000.0,0.00027892,7]
[394960271,1764209062972,-2000.0,0.00027892,7]
[394960272,1764209062995,-2000.0,0.00027892,7]
[394960273,1764209063018,-250.0,0.000279,7]
[394960274,1764209063042,-250.0,0.000279,7]
[394960275,1764209063069,-2000.0,0.00027901,7]
[394960276,1764209063094,-2000.0,0.00027901,7]
[394960277,1764209063119,-2000.0,0.00027901,7]
[394960278,1764209063144,-2000.0,0.00027901,7]
[394960279,1764209063168,-2000.0,0.00027901,7]
[394960280,1764209063192,-2000.0,0.0002791,7]
[394960281,1764209063216,-2000.0,0.0002791,7]
[394960282,1764209063240,-2000.0,0.0002791,7]
[394960283,1764209063266,-2000.0,0.0002791,7]
[394960284,1764209063296,-2000.0,0.0002791,7]
[394960285,1764209063321,-151.0,0.0002791,7]
[394960286,1764209063344,-151.0,0.0002791,7]
[394960287,1764209063368,-2000.0,0.00027919,7]
[394960288,1764209063394,-2000.0,0.00027919,7]
[394960289,1764209063420,-2000.0,0.00027919,7]
[394960290,1764209063445,-2000.0,0.00027919,7]
[394960291,1764209063470,-2000.0,0.00027919,7]
[394960292,1764209063494,-2000.0,0.00027927,7]
[394960293,1764209063519,-2000.0,0.00027927,7]
[394960294,1764209063543,-2000.0,0.00027927,7]
[394960295,1764209063567,-2000.0,0.00027927,7]
[394960296,1764209063591,-2000.0,0.00027927,7]
[394960297,1764209063614,-2000.0,0.00027936,7]
[394960298,1764209063638,-2000.0,0.00027936,7]
[394960299,1764209063662,-2000.0,0.00027936,7]
[394960300,1764209063685,-2000.0,0.00027936,7]
[394960301,1764209063710,-2000.0,0.00027936,7]
[394960302,1764209063734,-2000.0,0.00027945,7]
[394960303,1764209063759,-2000.0,0.00027945,7]
[394960304,1764209063788,-2000.0,0.00027945,7]
[394960305,1764209063812,-2000.0,0.00027945,7]
[394960306,1764209063949,-2000.0,0.00027945,7]
[394960307,1764209063981,-353.4974844,0.00028,7]
[394960308,1764209064015,-151.0,0.00028767,7]
[394960309,1764209064046,-151.0,0.00028767,7]
[394960310,1764209064073,-180.794814,0.00028767,7]
[394960311,1764209064098,-180.794814,0.00028767,7]
[394960312,1764209064123,-180.794814,0.00028767,7]
[394960313,1764209064149,-180.794814,0.00028767,7]
[394960314,1764209064176,-151.0,0.00028767,7]
[394960315,1764209064202,-353.4974844,0.000288,7]
[394960316,1764209064226,-151.0,0.00028935,7]
[394960317,1764209064252,-151.0,0.00028935,7]
[394960318,1764209064277,-151.0,0.00028988,7]
[394960319,1764209064301,-182.650847,0.00028988,7]
[394960320,1764209064327,-151.0,0.00029006,7]
[394960321,1764209064352,-151.0,0.00029006,7]
[394960322,1764209064378,-151.0,0.00029006,7]
[394960323,1764209064403,-151.0,0.00029006,7]
[394960324,1764209064427,-151.0,0.00029006,7]
[394960325,1764209064452,-151.0,0.00029006,7]
[394960326,1764209064477,-151.0,0.00029006,7]
[394960327,1764209064502,-151.0,0.00029006,7]
[394960328,1764209064526,-151.0,0.00029006,7]
[394960329,1764209064550,-151.0,0.00029006,7]
[394960330,1764209064573,-151.0,0.00029006,7]
[394960331,1764209064596,-151.0,0.00029006,7]
[394960332,1764209064619,-151.0,0.00029006,7]
[394960333,1764209064643,-151.0,0.00029006,7]
[394960334,1764209064666,-151.0,0.00029006,7]
[394960335,1764209064690,-151.0,0.00029006,7]
[394960336,1764209064718,-151.0,0.00029006,7]
[394960337,1764209064753,-292.343427,0.00029006,7]
[394960338,1764209064782,-151.0,0.00029015,7]
[394960339,1764209064807,-151.0,0.00029015,7]
[394960340,1764209064831,-151.0,0.00029015,7]
[394960341,1764209064855,-276.972127,0.00029015,7]
[394960342,1764209064879,-180.794814,0.00029015,7]
[394960343,1764209064903,-180.794814,0.00029015,7]
[394960344,1764209064927,-180.794814,0.00029015,7]
[394960345,1764209064951,-180.794814,0.00029015,7]
[394960346,1764209064976,-273.731207,0.00029015,7]
[394960347,1764209065002,-151.0,0.00029023,7]
[394960348,1764209065027,-151.0,0.00029023,7]
[394960349,1764209065052,-151.0,0.00029023,7]
[394960350,1764209065077,-151.0,0.00029023,7]
[394960351,1764209065102,-761.632167,0.00029023,7]
[394960352,1764209065127,-761.632167,0.00029023,7]
[394960353,1764209065152,-761.632167,0.00029023,7]
[394960354,1764209065177,-761.632167,0.00029023,7]
[394960355,1764209065201,-303.273968,0.00029023,7]
[394960356,1764209065224,-303.273968,0.00029023,7]
[394960357,1764209065250,-3065.421225,0.00029023,7]
[394960358,1764209065275,-151.0,0.00029023,7]
[394960359,1764209065300,-303.273968,0.00029023,7]
[394960360,1764209065324,-3065.421225,0.00029023,7]
[394960361,1764209065349,-151.0,0.00029023,7]
[394960362,1764209065374,-303.273968,0.00029023,7]
[394960363,1764209065400,-3065.421225,0.00029023,7]
[394960364,1764209065427,-282.272,0.00029023,7]
[394960365,1764209065453,-3065.421225,0.00029023,7]
[394960366,1764209065477,-1713.623204,0.00029023,7]
[394960367,1764209065501,-1713.623204,0.00029023,7]
[394960368,1764209065524,-1713.623204,0.00029023,7]
[394960369,1764209065547,-1713.623204,0.00029023,7]
[394960370,1764209065570,-151.0,0.00029041,7]
[394960371,1764209065593,-218.951352,0.00029041,7]